bitfinex/quotes_BTCUSD_20250123
["timestamp","ask_amount","ask_price","bid_price","bid_amount"]
[1737645226365,0.19445622,103200.0,103130.0,0.50888599]
[1737645226565,0.04974366,103190.0,103140.0,0.0807]
[1737645226771,0.04974366,103190.0,103150.0,0.55252165]
[1737645226772,0.00605928,103190.0,103150.0,0.55252165]
[1737645226968,0.00605928,103190.0,103170.0,0.193839]
[1737645227189,0.19987628,103190.0,103140.0,0.274601]
[1737645227394,0.19987628,103190.0,103160.0,0.096931]
[1737645227395,0.29678828,103190.0,103160.0,0.096931]
[1737645227601,0.29678828,103190.0,103180.0,0.096918]
[1737645227602,0.0065611,103190.0,103180.0,0.096918]
[1737645227733,0.0065611,103190.0,103170.0,0.096926]
[1737645227936,0.0065611,103190.0,103170.0,0.193839]
[1737645228141,0.19869689,103180.0,103140.0,0.0807]
[1737645228356,0.096934,103170.0,103140.0,0.19723956]
[1737645228553,0.00484589,103180.0,103160.0,0.09693]
[1737645228758,0.1939424,103200.0,103160.0,0.09693]
[1737645228759,0.0001424,103200.0,103170.0,0.02325634]
[1737645228957,0.0151586,103230.0,103180.0,0.193825]
[1737645229207,0.193773,103220.0,103170.0,0.01970235]
[1737645229407,0.096892,103210.0,103170.0,0.21379969]
[1737645229604,0.0151586,103230.0,103200.0,1.693796]
[1737645229840,0.0151586,103230.0,103220.0,0.09688]
[1737645230058,0.0151586,103230.0,103210.0,0.290648]
[1737645230262,0.0151586,103230.0,103220.0,1.5]
[1737645230486,0.1120296,103230.0,103220.0,1.5]
[1737645230904,0.0151586,103230.0,103190.0,0.01]
[1737645231105,0.193785,103240.0,103220.0,0.08014975]
[1737645231324,0.096871,103230.0,103220.0,0.00014975]
[1737645233133,0.62550065,103230.0,103220.0,7.5e-07]
[1737645233340,0.096899,103200.0,103190.0,0.01]
[1737645233539,0.096899,103200.0,103190.0,0.01014998]
[1737645234095,0.296899,103200.0,103190.0,0.00470933]
[1737645234308,0.339899,103200.0,103190.0,3.3e-07]
[1737645234536,0.096974,103120.0,103110.0,0.075]
[1737645234743,0.096974,103120.0,103070.0,0.00025634]
[1737645234744,0.04974366,103100.0,103070.0,0.0799]
[1737645234953,0.193967,103110.0,103070.0,0.0799]
[1737645235164,0.290956,103110.0,103070.0,0.27742082]
[1737645235370,0.096987,103110.0,103080.0,0.00431141]
[1737645235577,0.193948,103120.0,103080.0,0.00431141]
[1737645235798,0.193923,103140.0,103090.0,0.194003]
[1737645236008,0.193923,103140.0,103090.0,0.29099]
[1737645236009,0.096975,103120.0,103090.0,0.29099]
[1737645236219,0.096975,103120.0,103100.0,0.00430005]
[1737645236422,0.290925,103120.0,103100.0,0.00430005]
[1737645236625,0.290904,103130.0,103100.0,0.096992]
[1737645236829,0.387849,103140.0,103100.0,0.29096]
[1737645236830,0.387848,103140.0,103100.0,0.29096]
[1737645237047,0.193876,103160.0,103120.0,0.293948]
[1737645237263,0.193829,103190.0,103150.0,0.193889]
[1737645237442,0.290702,103200.0,103170.0,0.096925]
[1737645237680,0.484501,103200.0,103170.0,0.096926]
[1737645237891,0.24353666,103210.0,103180.0,0.096913]
[1737645238106,0.0001421,103190.0,103180.0,0.096913]
[1737645238310,6e-05,103240.0,103180.0,0.19408034]
[1737645238311,0.096875,103230.0,103180.0,0.19408034]
[1737645238525,0.096875,103230.0,103200.0,0.29069]
[1737645238733,0.096927,103240.0,103220.0,1.5]
[1737645238938,6e-05,103240.0,103220.0,1.5]
[1737645239111,0.096871,103230.0,103200.0,0.096898]
[1737645239320,0.096885,103220.0,103190.0,0.096906]
[1737645239660,0.00031205,103220.0,103210.0,1.596889]
[1737645239864,0.00031205,103220.0,103210.0,1.769889]
[1737645240074,0.00031205,103220.0,103210.0,0.351089]
[1737645240279,0.00515672,103220.0,103210.0,0.35149541]
[1737645240479,0.000143,103250.0,103210.0,0.35149541]
[1737645240480,0.000143,103250.0,103240.0,0.00025634]
[1737645240631,0.0001429,103310.0,103290.0,0.096814]
[1737645240833,0.005156,103330.0,103300.0,0.193609]
[1737645241039,0.08454393,103340.0,103300.0,0.0812]
[1737645241223,0.0653536,103340.0,103320.0,0.096781]
[1737645241421,0.0001429,103350.0,103330.0,0.24702634]
[1737645241624,0.0001429,103350.0,103340.0,0.096767]
[1737645241847,0.06236002,103360.0,103340.0,0.096767]
[1737645242026,0.00236002,103360.0,103350.0,0.24701434]
[1737645242229,0.0002024,103380.0,103360.0,0.290238]
[1737645242404,0.0002024,103380.0,103360.0,0.290244]
[1737645242655,0.0002024,103380.0,103370.0,0.096739]
[1737645242858,0.0002024,103380.0,103360.0,0.290226]
[1737645243087,0.00070566,103380.0,103360.0,0.096743]
[1737645243246,0.00070566,103380.0,103360.0,0.193497]
[1737645243452,0.00070566,103380.0,103370.0,0.24699534]
[1737645243875,0.00070566,103380.0,103370.0,0.096739]
[1737645244077,0.193479,103370.0,103330.0,0.242651]
[1737645244307,0.193532,103350.0,103330.0,0.0491]
[1737645244507,0.193517,103350.0,103310.0,1.008174]
[1737645244710,0.193555,103330.0,103310.0,0.8146]
[1737645244915,0.04974366,103340.0,103270.0,0.193653]
[1737645245138,0.35862965,103350.0,103250.0,0.0495]
[1737645245139,0.79558731,103310.0,103250.0,0.0495]
[1737645245311,0.193624,103300.0,103270.0,0.096833]
[1737645245514,0.60126113,103330.0,103280.0,0.19389134]
[1737645245515,0.193556,103330.0,103280.0,0.19389134]
[1737645245712,0.193586,103320.0,103280.0,0.096814]
[1737645245981,0.193586,103320.0,103280.0,0.387279]
[1737645245982,0.00050263,103310.0,103280.0,0.387279]
[1737645246160,0.00050263,103310.0,103290.0,0.290443]
[1737645246305,0.00050263,103310.0,103280.0,0.193648]
[1737645246532,0.00050263,103310.0,103300.0,0.096805]
[1737645246723,0.04994606,103380.0,103330.0,0.193553]
[1737645246920,0.0002024,103380.0,103350.0,0.193503]
[1737645247315,0.193499,103360.0,103320.0,0.1253]
[1737645247453,0.0002024,103380.0,103340.0,0.00025634]
[1737645247659,0.0002024,103380.0,103360.0,0.096744]
[1737645247860,0.0002024,103380.0,103360.0,0.290226]
[1737645248104,0.0002024,103380.0,103370.0,1.5]
[1737645248280,0.386977,103370.0,103340.0,0.096767]
[1737645248495,0.0002024,103380.0,103370.0,0.096739]
[1737645248684,0.0002024,103380.0,103370.0,1.596739]
[1737645248883,0.0969324,103380.0,103370.0,1.5]
[1737645249344,0.290116,103410.0,103380.0,0.096724]
[1737645249484,0.0968366,103420.0,103390.0,0.386877]
[1737645249694,0.1935296,103420.0,103390.0,0.096714]
[1737645249904,0.0001426,103420.0,103410.0,1.5]
[1737645250338,0.0001426,103420.0,103400.0,0.0754]
[1737645250536,0.096739,103370.0,103360.0,0.0754]
[1737645250806,0.096739,103370.0,103340.0,0.0498]
[1737645250939,0.0001418,103380.0,103320.0,0.0754]
[1737645251141,0.0001418,103380.0,103340.0,0.19352]
[1737645251362,0.290259,103360.0,103330.0,0.19380834]
[1737645251565,0.193492,103370.0,103330.0,0.193552]
[1737645251566,0.096743,103370.0,103330.0,0.193552]
[1737645251814,0.387013,103360.0,103330.0,0.11646235]
[1737645252023,0.387013,103360.0,103320.0,0.07565634]
[1737645252024,0.290282,103350.0,103320.0,0.36574]
[1737645252227,0.096767,103340.0,103330.0,0.00015007]
[1737645252558,0.14651066,103340.0,103330.0,0.00015007]
[1737645252787,0.096767,103340.0,103330.0,0.00015007]
[1737645253366,0.096805,103300.0,103290.0,0.00029778]
[1737645253566,0.45870048,103300.0,103290.0,0.00080041]
[1737645253998,0.096805,103300.0,103290.0,0.00080041]
[1737645254198,0.45870048,103300.0,103290.0,0.00080041]
[1737645254601,0.096805,103300.0,103290.0,0.00080041]
[1737645255583,0.45870048,103300.0,103290.0,0.10080041]
[1737645255695,0.290407,103310.0,103290.0,0.10080041]
[1737645255896,0.02,103360.0,103310.0,0.290383]
[1737645255897,0.193519,103350.0,103310.0,0.290383]
[1737645256150,0.193519,103350.0,103300.0,0.19361]
[1737645256350,0.0001418,103380.0,103330.0,0.15]
[1737645256505,0.0001418,103380.0,103310.0,0.193579]
[1737645256506,0.193522,103350.0,103310.0,0.193579]
[1737645256939,0.193522,103350.0,103300.0,0.08155634]
[1737645256940,0.193481,103370.0,103330.0,0.096776]
[1737645257288,0.00483897,103340.0,103300.0,0.0813]
[1737645257476,0.00483897,103340.0,103310.0,0.096795]
[1737645257477,0.096782,103330.0,103310.0,0.096795]
[1737645257949,0.19837497,103340.0,103310.0,0.290371]
[1737645258153,0.00483897,103340.0,103320.0,1.693557]
[1737645258277,0.290262,103360.0,103330.0,0.246771]
[1737645258482,0.193481,103370.0,103330.0,0.34379734]
[1737645258483,0.290225,103370.0,103330.0,0.34379734]
[1737645258692,0.0001418,103380.0,103330.0,0.34379734]
[1737645258693,0.0968728,103380.0,103360.0,0.096745]
[1737645258918,0.0968728,103380.0,103330.0,0.15]
[1737645258919,0.2903348,103380.0,103370.0,1.5]
[1737645259080,0.0001418,103380.0,103370.0,1.596739]
[1737645259288,0.0048084,103390.0,103380.0,0.09673]
[1737645259732,0.0048084,103390.0,103350.0,0.06892349]
[1737645259936,0.0048084,103390.0,103380.0,1.59687971]
[1737645260185,0.1015294,103390.0,103380.0,1.50014971]
[1737645260385,0.1015294,103390.0,103380.0,0.00014971]
[1737645261101,0.1015294,103390.0,103330.0,1.5]
[1737645261102,0.096767,103340.0,103330.0,1.5]
[1737645261334,0.193532,103350.0,103330.0,0.00015024]
[1737645261592,0.096767,103340.0,103330.0,0.00015024]
[1737645261815,0.14651066,103340.0,103330.0,0.00015024]
[1737645262021,0.096767,103340.0,103330.0,0.00015024]
[1737645262443,0.14651066,103340.0,103330.0,0.00015024]
[1737645262563,0.096767,103340.0,103330.0,0.00015024]
[1737645262989,0.45866248,103340.0,103330.0,0.00015024]
[1737645263189,0.0001418,103340.0,103330.0,0.00015024]
[1737645263358,0.05455206,103390.0,103330.0,0.00015024]
[1737645263359,0.096749,103360.0,103340.0,0.096765]
[1737645263559,0.05455206,103390.0,103350.0,0.096751]
[1737645263760,0.190187,103390.0,103350.0,0.27325934]
[1737645263957,0.29017,103390.0,103360.0,0.290227]
[1737645264239,0.24316766,103400.0,103370.0,0.193479]
[1737645264240,0.193424,103400.0,103370.0,0.193479]
[1737645264403,0.0001426,103420.0,103380.0,0.216449]
[1737645264611,0.096707,103410.0,103370.0,0.193466]
[1737645264785,0.096713,103400.0,103380.0,0.290174]
[1737645264988,0.193397,103420.0,103390.0,0.246715]
[1737645265213,0.193349,103440.0,103390.0,0.15]
[1737645265415,0.096685,103430.0,103400.0,0.290127]
[1737645265615,0.00050345,103420.0,103400.0,0.193408]
[1737645266019,0.00050345,103420.0,103410.0,0.096702]
[1737645266363,0.00050345,103420.0,103370.0,0.193468]
[1737645266364,0.04974366,103410.0,103370.0,0.193468]
[1737645266564,0.193423,103400.0,103360.0,0.00025634]
[1737645266757,0.05024711,103420.0,103310.0,0.08720964]
[1737645266758,0.096786,103320.0,103310.0,0.08720964]
[1737645266960,0.096796,103310.0,103300.0,0.00029778]
[1737645267159,0.193566,103330.0,103300.0,0.00029778]
[1737645267160,0.24329866,103330.0,103300.0,0.00029778]
[1737645267402,0.096796,103310.0,103300.0,0.00029778]
[1737645267843,0.387158,103320.0,103300.0,0.00029778]
[1737645268047,0.096791,103320.0,103300.0,1.59710178]
[1737645268225,0.193567,103330.0,103300.0,1.50044802]
[1737645268428,0.290375,103320.0,103300.0,0.09725102]
[1737645268565,0.290372,103320.0,103300.0,0.29085702]
[1737645268767,0.096796,103310.0,103300.0,0.00044802]
[1737645269544,0.00483998,103320.0,103310.0,0.096796]
[1737645269674,0.00483998,103320.0,103310.0,0.27005234]
[1737645270075,0.00483998,103320.0,103310.0,1.769796]
[1737645270324,0.00483998,103320.0,103310.0,1.5]
[1737645270491,0.00483998,103320.0,103310.0,1.65025634]
[1737645270691,0.00483998,103320.0,103310.0,1.769796]
[1737645270895,0.290331,103330.0,103310.0,1.790383]
[1737645271091,0.483871,103340.0,103310.0,0.290381]
[1737645271299,0.193556,103330.0,103300.0,0.34405202]
[1737645271501,0.096796,103310.0,103300.0,0.00044802]
[1737645271716,0.14653966,103310.0,103300.0,0.00044802]
[1737645271914,0.387163,103320.0,103300.0,0.00044802]
[1737645272114,0.096796,103310.0,103300.0,0.00044802]
[1737645272899,0.096805,103300.0,103290.0,0.09624206]
[1737645273092,0.296805,103300.0,103290.0,6.9e-07]
[1737645273297,0.246805,103300.0,103290.0,6.9e-07]
[1737645273945,0.096805,103300.0,103290.0,6.9e-07]
[1737645274178,0.096815,103290.0,103270.0,0.096827]
[1737645274394,0.29092491,103300.0,103280.0,0.096823]
[1737645274613,0.19363,103290.0,103250.0,0.193688]
[1737645274813,0.38774391,103300.0,103270.0,0.193666]
[1737645274964,0.29093391,103300.0,103280.0,0.096823]
[1737645275147,0.096816,103290.0,103270.0,0.484135]
[1737645275353,0.38774391,103300.0,103280.0,0.193648]
[1737645275354,0.00050291,103300.0,103280.0,0.193648]
[1737645275716,0.193485,103370.0,103320.0,0.00025634]
[1737645275917,0.04974366,103370.0,103320.0,0.193562]
[1737645276048,0.19351,103360.0,103330.0,0.21335546]
[1737645276252,0.19351,103360.0,103330.0,0.40689846]
[1737645276503,0.0001424,103410.0,103350.0,0.193517]
[1737645276735,0.0001424,103410.0,103340.0,0.0487]
[1737645276736,0.00010359,103420.0,103410.0,0.096702]
[1737645276947,0.0968104,103450.0,103430.0,0.193362]
[1737645276948,0.0001424,103450.0,103430.0,0.193362]
[1737645277155,0.0001424,103450.0,103440.0,0.096674]
[1737645277560,0.00064594,103450.0,103440.0,0.246674]
[1737645277762,0.00064594,103450.0,103440.0,0.24693034]
[1737645277976,0.00029968,103470.0,103460.0,0.246655]
[1737645278184,0.00029968,103470.0,103460.0,0.364655]
[1737645278388,0.07927337,103480.0,103460.0,0.30694922]
[1737645278590,0.0001425,103490.0,103480.0,0.246637]
[1737645278996,0.0001425,103490.0,103480.0,1.746637]
[1737645279199,0.00035946,103520.0,103480.0,1.65]
[1737645279397,0.00035946,103520.0,103490.0,0.193239]
[1737645279629,0.00035946,103520.0,103490.0,0.38648]
[1737645279830,0.00035946,103520.0,103490.0,0.38662933]
[1737645279959,0.19355946,103520.0,103500.0,1.5]
[1737645280162,0.09696246,103520.0,103500.0,1.5]
[1737645280370,0.09696046,103520.0,103500.0,1.5]
[1737645280599,0.00483023,103510.0,103500.0,1.596618]
[1737645280801,0.10143923,103510.0,103500.0,1.5]
[1737645281023,0.00483023,103510.0,103490.0,0.00014933]
[1737645281246,0.096618,103500.0,103490.0,0.00014933]
[1737645281450,0.00483023,103510.0,103490.0,0.00014933]
[1737645281645,0.00483023,103510.0,103500.0,0.096618]
[1737645281864,0.00483023,103510.0,103490.0,0.38664133]
[1737645282064,0.00483023,103510.0,103500.0,0.096618]
[1737645282245,0.00035946,103520.0,103510.0,0.096609]
[1737645282456,0.00035946,103520.0,103500.0,0.193222]
[1737645282776,0.2899005,103540.0,103500.0,0.193221]
[1737645282982,0.0001425,103540.0,103520.0,0.193196]
[1737645283186,0.0967245,103540.0,103510.0,0.386419]
[1737645283341,0.289772,103530.0,103500.0,0.096614]
[1737645283541,0.193182,103530.0,103500.0,0.28985]
[1737645283860,0.289776,103530.0,103500.0,0.38647]
[1737645284043,0.00482951,103530.0,103520.0,0.28979]
[1737645284252,0.34435217,103530.0,103500.0,0.193232]
[1737645284443,0.00482951,103530.0,103510.0,0.096606]
[1737645284670,0.1932804,103560.0,103520.0,0.193199]
[1737645284870,0.0967054,103560.0,103540.0,0.096574]
[1737645285071,0.1932804,103560.0,103530.0,0.096588]
[1737645285255,0.1932804,103560.0,103510.0,0.193202]
[1737645285256,0.14632966,103540.0,103510.0,0.193202]
[1737645285481,0.289735,103550.0,103520.0,0.482996]
[1737645285794,0.2898474,103560.0,103520.0,0.193197]
[1737645286004,0.2898474,103560.0,103550.0,0.096571]
[1737645286005,0.0001424,103560.0,103550.0,0.096571]
[1737645286208,0.00064657,103560.0,103550.0,0.096571]
[1737645286614,0.00064657,103560.0,103550.0,0.246571]
[1737645286844,0.00064657,103560.0,103550.0,0.096571]
[1737645287204,0.00064657,103560.0,103550.0,0.269571]
[1737645287573,0.00064657,103560.0,103540.0,0.59922247]
[1737645287574,0.00064657,103560.0,103540.0,0.11633747]
[1737645287778,0.096585,103540.0,103490.0,0.12702006]
[1737645287986,0.096618,103500.0,103490.0,0.038644]
[1737645288176,0.096618,103500.0,103460.0,0.193308]
[1737645288177,0.193254,103500.0,103480.0,0.01885228]
[1737645288425,0.1933249,103530.0,103480.0,0.01885228]
[1737645288601,0.0001424,103560.0,103500.0,0.19347634]
[1737645288804,0.2898324,103560.0,103540.0,0.096579]
[1737645289018,0.096584,103540.0,103520.0,0.096598]
[1737645289227,0.482874,103550.0,103530.0,0.096586]
[1737645289474,0.29033957,103560.0,103540.0,0.289738]
[1737645289673,0.29033957,103560.0,103540.0,0.193146]
[1737645289674,0.00064657,103560.0,103540.0,0.193146]
[1737645289877,0.00064657,103560.0,103550.0,0.096571]
[1737645290078,0.00064657,103560.0,103540.0,0.11550663]
[1737645290280,0.00064657,103560.0,103550.0,1.5]
[1737645290664,0.096571,103550.0,103540.0,0.01892763]
[1737645290865,0.00064657,103560.0,103520.0,0.0752]
[1737645290866,0.05039023,103560.0,103520.0,0.0752]
[1737645291066,0.04974366,103540.0,103480.0,0.414391]
[1737645291273,0.02,103550.0,103490.0,0.00025634]
[1737645291274,0.193143,103550.0,103490.0,0.00025634]
[1737645291481,0.29035457,103560.0,103520.0,0.193184]
[1737645291689,0.19378357,103560.0,103510.0,0.193204]
[1737645291928,0.289729,103550.0,103520.0,0.289795]
[1737645292139,0.00064657,103560.0,103530.0,0.19318]
[1737645292355,0.19340068,103580.0,103530.0,0.19318]
[1737645292356,0.00029968,103580.0,103570.0,0.15]
[1737645292574,0.0163053,103610.0,103590.0,0.096534]
[1737645292781,0.09680346,103630.0,103600.0,0.096523]
[1737645292983,0.00029946,103630.0,103560.0,0.193124]
[1737645293219,0.00029946,103630.0,103610.0,0.096512]
[1737645293420,0.09679646,103630.0,103610.0,0.096514]
[1737645293632,0.09679646,103630.0,103610.0,0.00014933]
[1737645293633,0.09680246,103630.0,103610.0,0.00014933]
[1737645293844,0.00029946,103630.0,103620.0,0.096506]
[1737645294075,0.01007071,103640.0,103620.0,0.096506]
[1737645294076,0.0044985,103640.0,103620.0,0.096506]
[1737645294283,0.04974366,103630.0,103610.0,0.00014933]
[1737645294485,0.096506,103620.0,103610.0,0.00014933]
[1737645294642,0.05424216,103640.0,103610.0,0.00014933]
[1737645294841,0.07674935,103620.0,103610.0,0.00014933]
[1737645295678,0.02,103620.0,103570.0,0.00025634]
[1737645295880,0.02,103620.0,103590.0,0.193068]
[1737645296053,0.00482561,103630.0,103620.0,0.096506]
[1737645296054,0.02482561,103630.0,103620.0,0.096506]
[1737645296252,0.02482561,103630.0,103600.0,0.193035]
[1737645296477,0.02482561,103630.0,103490.0,0.1]
[1737645296478,0.386075,103610.0,103520.0,1.47449239]
[1737645296653,0.07482561,103630.0,103560.0,0.0196601]
[1737645296654,0.02,103620.0,103560.0,0.0196601]
[1737645296855,0.096537,103590.0,103560.0,0.0196601]
[1737645297069,0.15482561,103630.0,103580.0,0.193083]
[1737645297070,0.00482561,103620.0,103580.0,0.193083]
[1737645297242,0.096517,103610.0,103590.0,0.096529]
[1737645297444,0.243053,103600.0,103520.0,0.0928]
[1737645297643,0.243053,103600.0,103510.0,0.58904229]
[1737645297644,0.05,103580.0,103560.0,0.01898196]
[1737645297873,0.193064,103600.0,103500.0,0.12168365]
[1737645297874,0.05,103590.0,103540.0,0.096577]
[1737645298069,0.05,103590.0,103500.0,0.193236]
[1737645298070,0.02,103550.0,103500.0,0.193236]
[1737645298358,0.096571,103550.0,103540.0,1.5]
[1737645298560,0.02,103510.0,103500.0,0.03863]
[1737645298757,0.05,103530.0,103500.0,0.03863]
[1737645298758,0.193202,103520.0,103500.0,0.03863]
[1737645298982,0.41189548,103530.0,103500.0,0.03863]
[1737645298983,0.70168548,103530.0,103500.0,1.5]
[1737645299143,0.60508748,103530.0,103500.0,1.5]
[1737645299517,0.55508248,103530.0,103500.0,1.596617]
[1737645299746,0.02,103520.0,103490.0,0.21220598]
[1737645299866,0.02,103530.0,103500.0,0.09691515]
[1737645300066,0.02,103530.0,103430.0,0.04753365]
[1737645300067,0.02,103510.0,103440.0,0.096674]
[1737645300271,0.02,103480.0,103430.0,0.04753365]
[1737645300473,0.02,103460.0,103440.0,0.096666]
[1737645300727,0.02,103460.0,103450.0,0.01907084]
[1737645301140,0.02,103440.0,103410.0,0.20211549]
[1737645301293,0.02,103450.0,103430.0,0.01963067]
[1737645301493,0.02,103450.0,103400.0,0.290133]
[1737645301494,0.02,103420.0,103400.0,0.290133]
[1737645301718,0.02,103410.0,103390.0,0.00029904]
[1737645302121,0.02,103400.0,103390.0,0.0197191]
[1737645302447,0.096711,103400.0,103390.0,0.00029904]
[1737645302867,0.26686181,103400.0,103390.0,0.00029904]
[1737645303041,0.096739,103370.0,103360.0,0.00986475]
[1737645303248,0.02,103360.0,103340.0,1.53603258]
[1737645303476,0.09675,103360.0,103340.0,1.53603258]
[1737645303648,0.193481,103370.0,103340.0,0.03603258]
[1737645303851,0.02,103350.0,103340.0,0.03603258]
[1737645304054,0.290125,103410.0,103370.0,0.290211]
[1737645304262,0.02,103370.0,103350.0,0.290268]
[1737645304464,0.02,103350.0,103340.0,1.53603258]
[1737645304664,0.02,103360.0,103340.0,1.53603258]
[1737645304863,0.02,103370.0,103340.0,1.53603258]
[1737645305171,0.02,103350.0,103340.0,1.53603258]
[1737645305487,0.02,103400.0,103340.0,1.72956758]
[1737645305663,0.02015081,103400.0,103390.0,0.096721]
[1737645305862,0.02015081,103400.0,103380.0,0.290169]
[1737645306072,0.02,103380.0,103360.0,0.19349]
[1737645306266,0.02,103380.0,103320.0,0.8146]
[1737645306267,0.02,103350.0,103330.0,0.290316]
[1737645306466,0.193474,103380.0,103320.0,1.00817]
[1737645306467,0.02,103360.0,103340.0,0.01889838]
[1737645306666,0.02,103360.0,103340.0,1.61566438]
[1737645306869,0.243462,103380.0,103340.0,1.51889838]
[1737645306870,0.05,103380.0,103340.0,1.51889838]
[1737645307164,0.02,103320.0,103280.0,0.10483873]
[1737645307370,0.15,103370.0,103280.0,0.10483873]
[1737645307371,0.213465,103380.0,103280.0,0.10483873]
[1737645307577,0.241,103420.0,103360.0,0.193484]
[1737645307783,0.24348,103370.0,103340.0,0.096761]
[1737645307927,0.02,103390.0,103330.0,0.193548]
[1737645307928,0.02,103350.0,103330.0,0.193548]
[1737645308133,0.43189548,103400.0,103340.0,1.51934664]
[1737645308134,0.02,103380.0,103340.0,1.51934664]
[1737645308342,0.02,103360.0,103340.0,1.71286664]
[1737645308544,0.05,103380.0,103340.0,1.71286664]
[1737645308545,0.193479,103370.0,103340.0,0.01934664]
[1737645308785,0.02,103340.0,103320.0,0.193557]
[1737645308934,0.02,103340.0,103330.0,0.096768]
[1737645309121,0.02,103340.0,103310.0,0.193586]
[1737645309308,0.02,103370.0,103350.0,0.096753]
[1737645309511,0.02,103390.0,103350.0,0.193517]
[1737645309735,0.02,103370.0,103350.0,0.0197186]
[1737645310141,0.340223,103370.0,103350.0,0.24308]
[1737645310353,0.00015078,103390.0,103350.0,0.24308]
[1737645310554,0.096736,103380.0,103350.0,0.24308]
[1737645310752,0.096736,103380.0,103350.0,0.533352]
[1737645310968,0.00015078,103390.0,103360.0,1.790238]
[1737645311323,0.00015078,103390.0,103380.0,0.09673]
[1737645311528,0.00015078,103390.0,103380.0,0.38277]
[1737645311934,0.00015078,103390.0,103380.0,1.76304]
[1737645312150,0.24687178,103390.0,103380.0,0.26304]
[1737645312343,0.24687178,103390.0,103350.0,0.00029757]
[1737645312545,0.340229,103370.0,103350.0,0.00029757]
[1737645312751,0.243461,103380.0,103350.0,0.00029757]
[1737645313108,0.146749,103360.0,103350.0,0.00029757]
[1737645313310,0.60864448,103360.0,103350.0,0.00029757]
[1737645313595,0.096805,103300.0,103290.0,0.00029799]
[1737645313959,0.246805,103300.0,103290.0,0.00029799]
[1737645314156,0.266805,103300.0,103290.0,0.00029799]
[1737645314362,0.246805,103300.0,103290.0,0.00029799]
[1737645314519,0.096805,103300.0,103290.0,0.00029799]
[1737645314737,0.09695559,103300.0,103290.0,0.00029799]
[1737645314939,0.26695559,103300.0,103290.0,0.00029799]
[1737645315147,0.24695559,103300.0,103290.0,0.00029799]
[1737645315367,0.17,103290.0,103280.0,0.0073545]
[1737645315581,0.146852,103250.0,103240.0,0.00035946]
[1737645315781,0.096852,103250.0,103240.0,0.00035946]
[1737645315997,0.193629,103290.0,103240.0,0.00035946]
[1737645316201,0.096788,103320.0,103290.0,0.290437]
[1737645316395,0.0471,103350.0,103250.0,0.193704]
[1737645316396,0.290281,103350.0,103320.0,0.290355]
[1737645316642,0.096761,103350.0,103320.0,0.290354]
[1737645316817,0.09678,103330.0,103300.0,0.096801]
[1737645317022,0.2436797,103350.0,103300.0,0.193604]
[1737645317304,0.096796,103310.0,103280.0,0.373451]
[1737645317430,0.387175,103320.0,103280.0,0.083]
[1737645317615,0.05,103330.0,103280.0,0.083]
[1737645317616,0.096777,103330.0,103300.0,0.096798]
[1737645317818,0.05,103330.0,103290.0,0.23577278]
[1737645318018,0.05,103330.0,103290.0,0.21277178]
[1737645318227,0.340351,103330.0,103290.0,0.01915678]
[1737645318432,0.340351,103330.0,103300.0,0.290406]
[1737645318433,0.096778,103330.0,103300.0,0.290406]
[1737645318641,0.533867,103340.0,103310.0,0.096792]
[1737645318850,0.19368667,103340.0,103300.0,0.023]
[1737645319061,0.243558,103330.0,103290.0,0.01915678]
[1737645319265,0.19368667,103340.0,103290.0,0.01915678]
[1737645319266,0.243586,103320.0,103290.0,0.01915678]
[1737645319552,0.193574,103320.0,103290.0,0.01915678]
[1737645319758,0.0968,103310.0,103290.0,0.01915678]
[1737645319955,0.146797,103310.0,103280.0,0.096816]
[1737645320158,0.096807,103300.0,103280.0,0.01910837]
[1737645320339,0.193592,103310.0,103280.0,0.11592337]
[1737645320532,0.0968,103310.0,103280.0,0.30956837]
[1737645320736,0.096808,103300.0,103280.0,0.01910837]
[1737645320947,0.096808,103300.0,103240.0,0.0753]
[1737645320948,0.05,103290.0,103240.0,0.0753]
[1737645321117,0.290534,103260.0,103240.0,0.0753]
[1737645321324,0.290519,103270.0,103240.0,0.172161]
[1737645321518,0.04445862,103290.0,103240.0,0.08049194]
[1737645321720,0.04445862,103290.0,103280.0,0.096824]
[1737645321721,0.00015056,103290.0,103280.0,0.096824]
[1737645321947,0.00015056,103290.0,103280.0,0.119824]
[1737645322328,0.00015056,103290.0,103280.0,0.269824]
[1737645322529,0.09696956,103290.0,103260.0,0.193679]
[1737645322728,0.00015056,103290.0,103270.0,0.193665]
[1737645322934,0.00015056,103290.0,103260.0,0.00569194]
[1737645322935,0.096749,103360.0,103330.0,0.290319]
[1737645323140,0.0471,103390.0,103350.0,0.193503]
[1737645323141,0.01114912,103390.0,103350.0,0.193503]
[1737645323365,0.193454,103390.0,103350.0,0.193503]
[1737645323581,0.193391,103420.0,103370.0,0.00569194]
[1737645323776,0.290055,103430.0,103400.0,0.096708]
[1737645323977,0.096678,103440.0,103410.0,0.096699]
[1737645324187,0.096678,103440.0,103410.0,0.290088]
[1737645324393,0.00015022,103430.0,103420.0,0.096693]
[1737645324573,0.00015022,103430.0,103420.0,0.46509696]
[1737645324956,0.193285,103480.0,103420.0,0.46509696]
[1737645324957,0.00907834,103500.0,103430.0,0.02869194]
[1737645325157,0.00907834,103500.0,103490.0,0.023]
[1737645325378,0.096593,103530.0,103500.0,0.096618]
[1737645325594,0.386429,103520.0,103470.0,0.19896694]
[1737645325796,0.23757206,103520.0,103470.0,0.386552]
[1737645325999,0.096617,103510.0,103480.0,0.289909]
[1737645326212,0.193257,103490.0,103470.0,0.01918125]
[1737645326414,0.23759206,103480.0,103430.0,0.0766]
[1737645326629,0.193331,103450.0,103420.0,0.8146]
[1737645326825,0.193295,103470.0,103430.0,0.193366]
[1737645327027,0.096666,103450.0,103420.0,0.01980275]
[1737645327147,0.096683,103430.0,103420.0,0.01980275]
[1737645327343,0.193346,103450.0,103420.0,0.01980275]
[1737645327553,0.290083,103420.0,103390.0,0.173317]
[1737645327748,0.290083,103420.0,103390.0,0.17332]
[1737645327749,0.290087,103420.0,103390.0,0.17332]